Cogmind - Beta 15 @@@ ROGUE MODE // 2025.09.19 @ 06:51:36 Player: GermanMO Result: Destroyed by Autobeam Turret with Autobeam Performance ------------- Evolutions (0) 0 Regions Visited (2) 400 Robots Destroyed (14) 70 Value Destroyed (177) 177 Prototype IDs (0) 0 Alien Tech Used (0) 0 Bonus (0) 0 TOTAL SCORE: 647 Bonus ------- None Cogmind --------- Core Integrity 0/250 Matter 300/300 Energy 98/100 System Corruption 0% Temperature Cool (12) Movement Core (50) Location -10/Subcaves Parts ------- > --- POWER (1) -------- (None) > --- PROPULSION (2) --- (None) > --- UTILITY (2) ------ (None) > --- WEAPON (2) ------- Makeshift Shrapnel Gun > --- INVENTORY (5) ---- Visual Processing Unit Improved Terrain Scanner Targeting Computer Targeting Computer Flail Peak State ------------ > --- POWER ------------ Light Ion Engine > --- PROPULSION ------- Hover Unit Hover Unit > --- UTILITY ---------- Improved Terrain Scanner Transport Network Coupler > --- WEAPON ----------- Light Assault Rifle Light Assault Rifle > --- INVENTORY -------- Targeting Computer Targeting Computer Targeting Computer Targeting Computer Flail [Rating: 9] Favorites ----------- Power Light Ion Engine Engine Light Ion Engine Propulsion Hover Unit Hover Unit Hover Unit Utility Improved Terrain Scanner Device Improved Terrain Scanner Processor Transport Network Coupler Weapon Light Assault Rifle Energy Gun EM Pulse Gun Ballistic Gun Light Assault Rifle Impact Weapon Flail Build | -11 -10 -10 ------- Run | Yrd Mat Sub Slots Evolved . | . . . Power . | . . . Propulsion . | . . . Utility . | . . . Weapon . | . . . Parts Attached 13 | 4 6 3 Power 4 | 2 1 1 Engine 4 | 2 1 1 Core . | . . . Reactor . | . . . Propulsion 2 | . 2 . Treads . | . . . Leg . | . . . Wheel . | . . . Hover 2 | . 2 . Flight . | . . . Utility 2 | . 2 . Device 1 | . 1 . Storage . | . . . Processor 1 | . 1 . Hackware . | . . . Protection . | . . . Artifact . | . . . Weapon 5 | 2 1 2 Energy Gun 1 | 1 . . Energy Cannon . | . . . Ballistic Gun 3 | 1 1 1 Ballistic Cannon . | . . . Launcher . | . . . Special Weapon . | . . . Impact Weapon 1 | . . 1 Slashing Weapon . | . . . Piercing Weapon . | . . . Special Melee Weapon . | . . . Unidentified Prototypes . | . . . Parts Lost 3 | . . 3 Power 1 | . . 1 Propulsion 2 | . . 2 Utility . | . . . Weapon . | . . . Highest Loss Streak 3 | . . 3 To Critical Strikes . | . . . Average Backups 4 | . 4 5 Power . | . . . Propulsion . | . . . Utility 3 | . 3 4 Weapon . | . . 1 Tool/Special . | . . . Unused Backups 6 | . 1 5 Power . | . . . Propulsion . | . . . Utility 5 | . 1 4 Weapon 1 | . . 1 Tool/Special . | . . . Average Slot Usage (%) 62 | . 87 34 Engine 12 | . 14 10 Hover 15 | . 25 3 Device 7 | . 11 2 Processor 4 | . 6 2 Energy Gun 1 | . 3 . Ballistic Gun 18 | . 24 11 Impact Weapon 2 | . . 5 Peak Build Rating 9 | 3 9 9 Average Rating 5 | 2 7 4 On Entrance 4 | . 3 9 Naked Turns . | . . . Heaviest Build 8 | 8 7 7 Greatest Support 12 | 3 12 12 Greatest Overweight (x) 2 | 2 1 2 Average Overweight (x) . | 1 . . Largest Inventory Capacity 5 | 5 5 5 Average Capacity 5 | 5 5 5 Most Carried 5 | 3 5 5 Average Carried 4 | . 4 4 Final Capacity 5 | 5 5 5 Final Carried 5 | 1 5 5 Class Distribution -------------------- 73% | Mutant 26% | Scavenger-Mutant Dominant Class ---------------- Mutant | -10/Materials Mutant | -10/Subcaves Resources | -11 -10 -10 ----------- Run | Yrd Mat Sub Matter Collected 402 | 240 101 61 Remotely . | . . . Salvage Created 413 | 133 180 100 Parts 43 | 13 22 8 Haulers Intercepted 2 | . 2 . Recyclers Shooed . | . . . Parts Field Recycled . | . . . Retrieved Matter . | . . . Parts Self-Destructed 17 | . . 17 Prevented . | . . . Kills | -11 -10 -10 ------- Run | Yrd Mat Sub Combat Hostiles Destroyed 7 | . 5 2 Guns 7 | . 5 2 Classes Destroyed 6 | 2 3 1 Tunneler 3 | 3 . . Hauler 2 | . 2 . Recycler 1 | 1 . . Watcher 1 | . 1 . Swarmer 5 | . 5 . Subdweller 2 | . . 2 Best Kill Streak 3 | 2 3 2 Combat Bots Only 3 | . 3 2 Max Kills in Single Turn 1 | 1 1 1 Gunslinging . | . . . Exploded . | . . . Melee . | . . . Uniques/NPCs Destroyed . | . . . Combat | -11 -10 -10 -------- Run | Yrd Mat Sub Hostile Shots Fired 79 | . 21 58 Missed 29 | . 5 24 Hits 50 | . 16 34 Projectile 50 | . 16 34 Critical Strikes 1 | . . 1 Damage Taken 656 | . 127 529 Core 250 | . 41 209 Absorbed by Shields . | . . . Core Remaining (%) 100 | 100 . . Volleys Fired 50 | 10 25 15 Largest 2 | 2 2 2 Hottest 60 | 60 60 40 Shots Fired 99 | 20 50 29 Gun 99 | 20 50 29 Cannon . | . . . Launcher . | . . . Special . | . . . Kinetic 83 | 10 44 29 Thermal . | . . . Explosive . | . . . Electromagnetic 16 | 10 6 . Robot Hit Streak 10 | 4 8 10 Robot Miss Streak 4 | 3 4 3 Penetration Max . | . . . Secondary Targets . | . . . Shots Hit Robots 62 | 11 29 22 Core Hits 26 | 5 13 8 Critical Kills . | . . . Critical Parts Destroyed . | . . . Critical Strikes 2 | 1 . 1 Destroy 1 | . . 1 Corrupt 1 | 1 . . Melee Attacks 3 | . . 3 Impact 3 | . . 3 Slashing . | . . . Piercing . | . . . Sneak Attacks . | . . . Combat Hostiles . | . . . Follow-up Attacks . | . . . Damage Inflicted 539 | 138 245 156 Guns 539 | 138 245 156 Cannons . | . . . Explosions . | . . . Melee . | . . . Ramming . | . . . Kinetic 392 | 34 202 156 Thermal . | . . . Explosive . | . . . Electromagnetic 147 | 104 43 . Impact . | . . . Slashing . | . . . Piercing . | . . . Highest Corruption . | . . . Average Corruption . | . . . Corruption Purged . | . . . Corruption Blocked . | . . . Overload Shots . | . . . Overflow Damage . | . . . Projectiles . | . . . Explosions . | . . . Melee . | . . . Knockbacks . | . . . Impact . | . . . Kinetic . | . . . Secondary . | . . . Self-Inflicted Damage . | . . . Shots . | . . . Rammed . | . . . Targets Rammed . | . . . Kicked . | . . . Crushed . | . . . Highest Temperature 54 | 40 54 . Average Temperature 15 | 20 13 . Received Heat Transfer 114 | . . 114 Siege Activations . | . . . Martial Activations . | . . . Shielding Activations . | . . . Robots Disrupted . | . . . Combat Hostiles . | . . . Robots Corrupted . | . . . Combat Hostiles . | . . . Parts Fried . | . . . Impact Corruptions . | . . . Robots Melted . | . . . Combat Hostiles . | . . . Parts Melted . | . . . Heat Transferred . | . . . Parts Sabotaged . | . . . Parts Stolen . | . . . Parts Stripped . | . . . Power Chain Reactions . | . . . Alert | -11 -10 -10 ------- Run | Yrd Mat Sub Maximum Alert Level . | . . . Low Security (%) 100 | 100 100 . Level 1 . | . . . Level 2 . | . . . Level 3 . | . . . Level 4 . | . . . Level 5 . | . . . High Security . | . . . Max Security . | . . . Peak Influence 65 | 10 65 . Initial . | . . . Average 14 | 3 15 . Influence Increases 248 | 20 168 60 Destroy 0b10 Robot/C 100 | . 100 . Destroy 0b10 Robot/NC 35 | 20 15 . Destroy Leader 26 | . 26 . Successful Hack 12 | . 12 . Lose Combat Pursuer 75 | . 15 60 Influence Decreases 236 | 20 151 65 Entered New Map 9 | . . 9 Time Decay 227 | 20 151 56 Squads Dispatched . | . . . Investigation . | . . . Extermination . | . . . Reinforcement . | . . . Assault . | . . . Garrison . | . . . Intercept . | . . . Searches Triggered . | . . . Construction Impeded . | . . . Haulers Reinforced . | . . . Active Scanning Responses . | . . . Cargo Convoy Interrupts . | . . . Stealth | -11 -10 -10 --------- Run | Yrd Mat Sub Distress Signals . | . . . Communications Jammed . | . . . Distress Signals . | . . . Times Spotted 22 | . 10 12 Peak Tracking Total 8 | . 3 8 Tactical Retreats 3 | . 1 2 Traps | -11 -10 -10 ------- Run | Yrd Mat Sub Traps Triggered . | . . . Indirectly . | . . . Trap Hack Attempts . | . . . Triggered . | . . . Disarmed . | . . . Reprogrammed . | . . . Reused . | . . . Traps Extracted . | . . . Installed . | . . . Triggered . | . . . Machines | -11 -10 -10 ---------- Run | Yrd Mat Sub Machines Disabled . | . . . Max in Single Turn . | . . . Machines Repaired . | . . . Machines Dismantled . | . . . Machines Sabotaged . | . . . Overloaded Fab Kills . | . . . Hacking | -11 -10 -10 --------- Run | Yrd Mat Sub Machines Accessed 1 | . 1 . Terminals 1 | . 1 . Fabricators . | . . . Repair Stations . | . . . Recycling Units . | . . . Scanalyzers . | . . . Garrison Access . | . . . Total Hacks 2 | . 2 . Successful 1 | . 1 . Failed 1 | . 1 . Catastrophic . | . . . Database Lockouts . | . . . Manual . | . . . Terminals 2 | . 2 . Fabricators . | . . . Repair Stations . | . . . Recycling Units . | . . . Scanalyzers . | . . . Garrison Access . | . . . Terminal Hacks 1 | . 1 . Record 1 | . 1 . Fabricator Hacks . | . . . Repair Station Hacks . | . . . Recycling Unit Hacks . | . . . Scanalyzer . | . . . Garrison Access Hacks . | . . . Unauthorized Hacks . | . . . Terminals . | . . . Fabricators . | . . . Repair Stations . | . . . Recycling Units . | . . . Scanalyzers . | . . . Garrison Access . | . . . Data Cores Recovered . | . . . Used . | . . . Hacking Detections . | . . . Full Trace Events . | . . . Feedback Events . | . . . Feedback Blocked . | . . . Robot Schematics Acquired . | . . . Robots Built . | . . . Authchips . | . . . Time . | . . . Total Robot Build Rating . | . . . Part Schematics Acquired . | . . . Parts Built . | . . . Authchips . | . . . Time . | . . . Total Part Build Rating . | . . . Parts Repaired . | . . . Time . | . . . Parts Recycled . | . . . Recycled Matter . | . . . Retrieved Matter . | . . . Retrieved Components . | . . . Parts Scanalyzed . | . . . Part Schematics Acquired . | . . . Parts Damaged . | . . . Bothacking | -11 -10 -10 ------------ Run | Yrd Mat Sub Used RIF Installer . | . . . Robots Hacked . | . . . Non-combat . | . . . Combat . | . . . Robot Hacks Applied . | . . . Relay Couplers Released . | . . . Fabnet Peak Effective % . | . . . Robots Rewired . | . . . Allies Hacked . | . . . Hacks Repelled . | . . . Allies | -11 -10 -10 -------- Run | Yrd Mat Sub Total Allies . | . . . Largest Group . | . . . Highest-Rated Group . | . . . Highest-Rated Ally . | . . . Total Orders . | . . . Ally Attacks . | . . . Total Damage . | . . . Kills . | . . . Allies Corrupted . | . . . Allies Melted . | . . . Intel | -11 -10 -10 ------- Run | Yrd Mat Sub Active Infowar (turns) 579 | . 494 85 Terrain 579 | . 494 85 T.N.C. 349 | . 265 84 Robot Analysis Total . | . . . Derelict Logs Recovered . | . . . Drone Launches . | . . . Drone Recoveries . | . . . Exploration | -11 -10 -10 ------------- Run | Yrd Mat Sub Turns Passed 1208 | 82 588 538 Spaces Moved 1184 | 44 568 572 Core 577 | 44 36 497 Treads . | . . . Legs . | . . . Wheels . | . . . Hover 607 | . 532 75 Flight . | . . . Fastest Speed 50 | 50 56 50 Average Speed 71 | 101 58 82 Slowest Speed 150 | 150 100 150 Overloaded Moves . | . . . Propulsion Burnouts . | . . . Robots Hopped . | . . . Potential Cave-ins . | . . . Cave-ins Triggered . | . . . Exploration Rate (%) 40 | 4 89 28 Regions Visited 2 Branch Regions 1 Pre-discovered Areas . | . . . Known Exits Taken . | . . . Unknown Exits Taken 2 | 1 1 . Scrap Searched 4 | . . 4 Spaces Dug . | . . . Terrain Destroyed . | . . . Melee . | . . . Projectile . | . . . AOE . | . . . Terrain Rammed . | . . . Walls Destroyed . | . . . Machines Disabled . | . . . Actions | -11 -10 -10 --------- Run | Yrd Mat Sub Total 1455 | 63 780 612 Wait 180 | . 171 9 Move 1182 | 43 567 572 Hop . | . . . Pick Up 14 | 5 8 1 Fast Attach 5 | . 3 2 Attach 8 | 4 3 1 Detach 3 | . . 3 Swap . | . . . Drop 10 | 1 3 6 Fire 50 | 10 25 15 Melee 3 | . . 3 Ram . | . . . Kick . | . . . Crush . | . . . Escape Stasis . | . . . Rewire . | . . . Trap . | . . . Miscellaneous . | . . . Route ------- -11/Scrapyard -10/Materials (discovered 5 exits: [*Mat x3] / [*Min] / [*Sub]) -10/Subcaves (discovered 1 exit: [*Rec]) History --------- Turn | Location | Event 10 | -11/Scrapyard | Discovered new exit (range 15) 83 | -11/Scrapyard | Entered Materials 132 | -10/Materials | Discovered new exit (range 15) 156 | -10/Materials | Discovered new exit (range 4) 311 | -10/Materials | Build established: Mutant 407 | -10/Materials | Discovered new exit (range 15) 472 | -10/Materials | Discovered new exit (range 4) 649 | -10/Materials | Discovered new exit (range 6) 671 | -10/Materials | Entered Subcaves 721 | -10/Subcaves | Build established: Scavenger-Mutant 747 | -10/Subcaves | Core integrity fell below 50% 763 | -10/Subcaves | Lost 3 parts (1p2n) 983 | -10/Subcaves | Shifting Twisted Machinery released Sub. Beam Cannon 984 | -10/Subcaves | Shifting Twisted Machinery released Battle Rifle 1024 | -10/Subcaves | Build established: Mutant 1160 | -10/Subcaves | Core integrity fell below 20% 1209 | -10/Subcaves | Discovered new exit (range 16) 1209 | -10/Subcaves | Destroyed by Autobeam Turret with Autobeam Last Messages --------------- Searching scrap... Found Mak. Shrapnel Gun. Found 40 Matter. Searching scrap... Found Sub. Monowheel. Found 40 Matter. Acquired Mak. Shrapnel Gun. Dropped Sub. Beam Cannon. Searching scrap... Found Mak. Axe. Found Piercing Trap. Found 37 Matter. Acquired 10 matter. Searching scrap... Found Flamer. Found 33 Matter. Acquired 5 matter. D6-IWU(R): "WEHOME!" EXIT=FOUND [Achievement: Achiever] Map ----- +----------------------------------------------------+ | ??????????????"??????????????????????????????????? | | ????????????#""??????????????????????????????????? | | ????????????"""??????????????????????????????????? | | ???????????? " #?????????????????????????????????? | | ???? ?????? ?????????????????????????????????? | | ???? ?????? #?????????????????????????????????? | | ????# ????? ?????????????????????????????????? | | ???## ????## ?????????????????????????????????? | | ??## ??## #?????????????????????????????????? | | ??# ??# ###???????????????????????????????? | | ??# ??# ##??????????????????????????????? | | ???? ?# "#??????????????????????????????? | | ?????# #?# ####????????????????????????????? | | ????## ### #????????????????????????????? | | ????# ## ####??????????????????????????? | | ????# % ## # ###????????????????????????? | | ???## % #????????????????????????? | | ???# % #????????????????????????? | | ###" %%& " ## #????????????????????????? | | #" ####### [#????????????????????????? | | ###### &[##???????????????????????? | | # % % # #*%=#??????????? "?????????? | | #" # ## # ![######### "?????????? | | ??## #?# % # #%& t""?????????? | | ???# #?## % # #### *